[Event "Open Cappelle-la-Grande"]
[Date "2025.02.19"]
[White "Pranesh M"]
[Black "Akhvlediani, Irakli"]
[WhiteElo "2586"]
[BlackElo "2369"]
[Round "7.7.6"]
[Result "1/2-1/2"]
[TimeControl "40/5400+30:1800+30"]

1. e4 {[%clk 1:30:56]} 1... c5 {[%clk 1:30:51]} 2. Nc3 {[%clk 1:31:17]} 2... Nc6
{[%clk 1:29:15]} 3. Nge2 {[%clk 1:31:41]} 3... g6 {[%clk 1:29:40]} 4. d4 {[%clk
1:32:07]} 4... cxd4 {[%clk 1:30:07]} 5. Nxd4 {[%clk 1:32:33]} 5... Bg7 {[%clk
1:30:33]} 6. Be3 {[%clk 1:32:57]} 6... Nf6 {[%clk 1:30:59]} 7. Bc4 {[%clk
1:33:16]} 7... Qa5 {[%clk 1:30:49]} 8. O-O {[%clk 1:33:17]} 8... O-O {[%clk
1:31:07]} 9. h3 {[%clk 1:30:25]} 9... d6 {[%clk 1:30:30]} 10. Bb3 {[%clk
1:28:58]} 10... Bd7 {[%clk 1:30:55]} 11. Qd3 {[%clk 1:27:12]} 11... Rac8 {[%clk
0:58:59]} 12. f4 {[%clk 1:25:55]} 12... Nxd4 {[%clk 0:41:53]} 13. Bxd4 {[%clk
1:25:22]} 13... Bc6 {[%clk 0:34:39]} 14. e5 {[%clk 1:20:05]} 14... Nh5 {[%clk
0:30:39]} 15. Rae1 {[%clk 1:11:34]} 15... Rcd8 {[%clk 0:27:08]} 16. Qe3 {[%clk
1:10:09]} 16... dxe5 {[%clk 0:18:43]} 17. fxe5 {[%clk 1:08:36]} 17... Ng3 {[%clk
0:13:44]} 18. Rxf7 {[%clk 1:06:12]} 18... Rxf7 {[%clk 0:13:30]} 19. Bxf7+ {[%clk
1:05:55]} 19... Kxf7 {[%clk 0:13:24]} 20. Qxg3 {[%clk 1:06:10]} 20... Kg8 {[%clk
0:13:52]} 21. Qe3 {[%clk 0:53:04]} 21... Qb4 {[%clk 0:13:01]} 22. Bc5 {[%clk
0:48:10]} 22... Qxb2 {[%clk 0:13:11]} 23. Re2 {[%clk 0:44:04]} 23... Rd7 {[%clk
0:06:03]} 24. Rf2 {[%clk 0:41:55]} 24... e6 {[%clk 0:05:07]} 25. Kh2 {[%clk
0:35:32]} 25... b5 {[%clk 0:01:12]} 26. a3 {[%clk 0:34:02]} 26... h6 {[%clk
0:00:41]} 27. h4 {[%clk 0:30:43]} 27... a5 {[%clk 0:00:53]} 28. Qg3 {[%clk
0:19:07]} 28... Kh7 {[%clk 0:01:20]} 29. h5 {[%clk 0:19:34]} 29... gxh5 {[%clk
0:01:02]} 30. Bd6 {[%clk 0:17:50]} 30... b4 {[%clk 0:01:16]} 31. axb4 {[%clk
0:18:04]} 31... axb4 {[%clk 0:01:42]} 32. Ne2 {[%clk 0:17:27]} 32... Qxc2 {[%clk
0:00:37]} 33. Nd4 {[%clk 0:15:54]} 33... Qc4 {[%clk 0:00:55]} 34. Rf4 {[%clk
0:15:14]} 34... Qd5 {[%clk 0:00:37]} 35. Nxc6 {[%clk 0:14:12]} 35... Qxc6 {[%clk
0:01:05]} 36. Qd3+ {[%clk 0:14:34]} 36... Kh8 {[%clk 0:00:36]} 37. Qg6 {[%clk
0:11:49]} 37... Rxd6 {[%clk 0:00:33]} 38. exd6 {[%clk 0:11:25]} 38... Qxd6
{[%clk 0:01:02]} 39. g3 {[%clk 0:11:49]} 39... Qd2+ {[%clk 0:00:48]} 40. Kh3
{[%clk 0:12:10]} 40... Qd1 {[%clk 0:00:37]} 41. Qe4 {[%clk 0:09:35]} 41... b3
{[%clk 0:28:51]} 42. Qa8+ {[%clk 0:38:27]} 42... Kh7 {[%clk 0:28:26]} 43. Qe4+
{[%clk 0:37:58]} 43... Kh8 {[%clk 0:28:52]} 44. Qa8+ {[%clk 0:37:30]} 44... Kh7
{[%clk 0:29:14]} 45. Qe4+ {[%clk 0:37:13]} 1/2-1/2

[Variant "Standard"]
[Site "Europe Echecs"]

[Event "Open Cappelle-la-Grande"]
[Date "2025.02.19"]
[White "Degraeve, Remy"]
[Black "Girel, Joseph"]
[WhiteElo "2371"]
[BlackElo "2484"]
[Round "7.7.7"]
[Result "1/2-1/2"]
[TimeControl "40/5400+30:1800+30"]

1. e4 {[%clk 1:30:58]} 1... e6 {[%clk 1:26:55]} 2. d4 {[%clk 1:31:17]} 2... d5
{[%clk 1:27:19]} 3. e5 {[%clk 1:31:42]} 3... c5 {[%clk 1:27:33]} 4. c3 {[%clk
1:32:09]} 4... Nc6 {[%clk 1:27:45]} 5. Nf3 {[%clk 1:32:34]} 5... Bd7 {[%clk
1:27:41]} 6. Be2 {[%clk 1:32:57]} 6... Rc8 {[%clk 1:27:53]} 7. O-O {[%clk
1:32:49]} 7... cxd4 {[%clk 1:28:13]} 8. cxd4 {[%clk 1:33:08]} 8... Nge7 {[%clk
1:28:29]} 9. Nc3 {[%clk 1:28:57]} 9... Nf5 {[%clk 1:28:44]} 10. Re1 {[%clk
1:21:35]} 10... a6 {[%clk 1:26:02]} 11. Bd3 {[%clk 0:55:56]} 11... Ncxd4 {[%clk
1:21:14]} 12. Nxd4 {[%clk 0:55:52]} 12... Nxd4 {[%clk 1:21:34]} 13. Qg4 {[%clk
0:56:15]} 13... Nc6 {[%clk 1:17:34]} 14. Bg5 {[%clk 0:56:26]} 14... Qc7 {[%clk
0:59:58]} 15. Qg3 {[%clk 0:51:38]} 15... h6 {[%clk 0:56:07]} 16. Bd2 {[%clk
0:50:07]} 16... g5 {[%clk 0:50:54]} 17. Rac1 {[%clk 0:47:36]} 17... Bg7 {[%clk
0:45:30]} 18. f4 {[%clk 0:46:02]} 18... Qb6+ {[%clk 0:45:06]} 19. Be3 {[%clk
0:42:16]} 19... Qd8 {[%clk 0:44:50]} 20. Na4 {[%clk 0:38:35]} 20... d4 {[%clk
0:43:08]} 21. Bd2 {[%clk 0:35:46]} 21... Nxe5 {[%clk 0:41:15]} 22. Rxc8 {[%clk
0:36:11]} 22... Qxc8 {[%clk 0:41:35]} 23. fxe5 {[%clk 0:35:20]} 23... Bxa4
{[%clk 0:41:48]} 24. h4 {[%clk 0:35:39]} 24... Bb5 {[%clk 0:34:06]} 25. hxg5
{[%clk 0:26:11]} 25... Bxd3 {[%clk 0:32:04]} 26. gxh6 {[%clk 0:26:36]} 26... Bf8
{[%clk 0:28:09]} 27. Qxd3 {[%clk 0:27:00]} 27... Bxh6 {[%clk 0:28:24]} 28. Bxh6
{[%clk 0:26:52]} 28... Rxh6 {[%clk 0:28:49]} 29. Qxd4 {[%clk 0:27:13]} 29... Kf8
{[%clk 0:25:40]} 30. Rf1 {[%clk 0:21:34]} 30... Kg7 {[%clk 0:24:48]} 31. Qe3
{[%clk 0:15:35]} 31... Qd7 {[%clk 0:23:01]} 32. Rf3 {[%clk 0:11:27]} 32... Qd1+
{[%clk 0:21:07]} 33. Rf1 {[%clk 0:11:54]} 33... Rh1+ {[%clk 0:14:22]} 34. Kxh1
{[%clk 0:12:21]} 34... Qxf1+ {[%clk 0:14:47]} 35. Kh2 {[%clk 0:12:49]} 35... Kg6
{[%clk 0:13:36]} 36. Qe4+ {[%clk 0:08:25]} 36... Qf5 {[%clk 0:13:07]} 37. Qxb7
{[%clk 0:08:50]} 37... Qxe5+ {[%clk 0:13:20]} 38. Kh1 {[%clk 0:09:03]} 38... a5
{[%clk 0:11:21]} 39. Qa8 {[%clk 0:07:54]} 39... Qe1+ {[%clk 0:10:59]} 40. Kh2
{[%clk 0:08:20]} 40... Qh4+ {[%clk 0:10:36]} 41. Kg1 {[%clk 0:08:48]} 41... Qe1+
{[%clk 0:10:54]} 42. Kh2 {[%clk 0:09:15]} 42... e5 {[%clk 0:10:43]} 43. Qg8+
{[%clk 0:09:00]} 43... Kf6 {[%clk 0:11:06]} 44. Qd8+ {[%clk 0:09:23]} 44... Kf5
{[%clk 0:10:50]} 45. Qd7+ {[%clk 0:09:41]} 45... Kg6 {[%clk 0:10:39]} 46. Qg4+
{[%clk 0:10:07]} 46... Kf6 {[%clk 0:10:03]} 47. Qf3+ {[%clk 0:10:33]} 47... Ke7
{[%clk 0:09:43]} 48. Qb7+ {[%clk 0:10:58]} 48... Kf8 {[%clk 0:08:36]} 49. Qc8+
{[%clk 0:11:22]} 49... Kg7 {[%clk 0:08:33]} 50. Qg4+ {[%clk 0:11:48]} 50... Kf6
{[%clk 0:05:31]} 51. Qf3+ {[%clk 0:12:12]} 51... Ke7 {[%clk 0:05:30]} 52. Qb7+
{[%clk 0:12:38]} 52... Kf6 {[%clk 0:01:29]} 1/2-1/2

[Variant "Standard"]
[Site "Europe Echecs"]

[Event "Open Cappelle-la-Grande"]
[Date "2025.02.19"]
[White "Suleymenov, Alisher"]
[Black "Zylka, Stanislaw"]
[WhiteElo "2481"]
[BlackElo "2346"]
[Round "7.7.8"]
[Result "1-0"]
[TimeControl "40/5400+30:1800+30"]

1. d4 {[%clk 1:30:58]} 1... d5 {[%clk 1:20:30]} 2. c4 {[%clk 1:31:21]} 2... e6
{[%clk 1:20:56]} 3. Nc3 {[%clk 1:31:37]} 3... h6 {[%clk 1:21:03]} 4. Nf3 {[%clk
1:27:21]} 4... Nf6 {[%clk 1:21:27]} 5. a3 {[%clk 1:25:19]} 5... b6 {[%clk
1:07:01]} 6. Bf4 {[%clk 1:17:47]} 6... Bd6 {[%clk 1:00:09]} 7. Be5 {[%clk
1:16:09]} 7... dxc4 {[%clk 0:46:17]} 8. Bxf6 {[%clk 1:09:28]} 8... Qxf6 {[%clk
0:45:47]} 9. e4 {[%clk 1:09:42]} 9... Qd8 {[%clk 0:42:42]} 10. e5 {[%clk
1:07:23]} 10... Be7 {[%clk 0:42:51]} 11. Bxc4 {[%clk 1:07:42]} 11... O-O {[%clk
0:41:47]} 12. O-O {[%clk 1:07:27]} 12... Bb7 {[%clk 0:23:01]} 13. d5 {[%clk
1:03:05]} 13... exd5 {[%clk 0:23:17]} 14. Nxd5 {[%clk 1:03:21]} 14... Nc6 {[%clk
0:21:04]} 15. Ba2 {[%clk 1:02:08]} 15... a5 {[%clk 0:16:58]} 16. Qc2 {[%clk
1:00:21]} 16... Kh8 {[%clk 0:10:21]} 17. Rad1 {[%clk 0:57:07]} 17... Qc8 {[%clk
0:10:36]} 18. Bb1 {[%clk 0:55:22]} 18... g6 {[%clk 0:11:02]} 19. e6 {[%clk
0:55:23]} 19... Qxe6 {[%clk 0:06:26]} 20. Rfe1 {[%clk 0:55:18]} 20... Qg4 {[%clk
0:05:47]} 21. Qc3+ {[%clk 0:55:16]} 21... Kg8 {[%clk 0:05:55]} 22. Rxe7 {[%clk
0:55:10]} 1-0

[Variant "Standard"]
[Site "Europe Echecs"]

[Event "Open Cappelle-la-Grande"]
[Date "2025.02.19"]
[White "Eugene, Floryan"]
[Black "Johnson, Donald"]
[WhiteElo "2468"]
[BlackElo "2337"]
[Round "7.7.9"]
[Result "1-0"]
[TimeControl "40/5400+30:1800+30"]

1. e4 {[%clk 1:29:59]} 1... c5 {[%clk 1:23:29]} 2. Nf3 {[%clk 1:30:13]} 2... d6
{[%clk 1:23:42]} 3. d4 {[%clk 1:29:54]} 3... cxd4 {[%clk 1:23:44]} 4. Nxd4
{[%clk 1:30:15]} 4... Nf6 {[%clk 1:23:56]} 5. Nc3 {[%clk 1:30:37]} 5... a6
{[%clk 1:24:24]} 6. g3 {[%clk 1:31:00]} 6... e5 {[%clk 1:24:49]} 7. Nb3 {[%clk
1:31:18]} 7... Be7 {[%clk 1:19:03]} 8. Bg5 {[%clk 1:31:29]} 8... Be6 {[%clk
1:18:41]} 9. Bxf6 {[%clk 1:30:51]} 9... Bxf6 {[%clk 1:19:09]} 10. Qd3 {[%clk
1:31:07]} 10... Be7 {[%clk 1:16:52]} 11. O-O-O {[%clk 1:28:44]} 11... Nd7 {[%clk
1:16:49]} 12. f4 {[%clk 1:26:09]} 12... Nf6 {[%clk 1:16:32]} 13. f5 {[%clk
1:24:01]} 13... Bd7 {[%clk 1:11:32]} 14. Qf3 {[%clk 1:19:27]} 14... b5 {[%clk
1:10:48]} 15. a3 {[%clk 1:07:00]} 15... Bc6 {[%clk 0:47:16]} 16. g4 {[%clk
1:03:49]} 16... Nd7 {[%clk 0:45:31]} 17. Kb1 {[%clk 1:03:14]} 17... Rc8 {[%clk
0:37:40]} 18. Qg3 {[%clk 0:55:20]} 18... Bh4 {[%clk 0:31:33]} 19. Qe3 {[%clk
0:54:53]} 19... Bg5 {[%clk 0:30:33]} 20. Qe1 {[%clk 0:47:50]} 20... Bh4 {[%clk
0:30:07]} 21. Qd2 {[%clk 0:48:14]} 21... Nf6 {[%clk 0:24:52]} 22. Qe2 {[%clk
0:45:48]} 22... O-O {[%clk 0:23:26]} 23. Rg1 {[%clk 0:43:29]} 23... Qb6 {[%clk
0:22:31]} 24. Rg2 {[%clk 0:42:58]} 24... b4 {[%clk 0:16:30]} 25. axb4 {[%clk
0:43:16]} 25... Qxb4 {[%clk 0:16:59]} 26. g5 {[%clk 0:43:36]} 26... Nxe4 {[%clk
0:16:51]} 27. Rg4 {[%clk 0:43:50]} 27... Nxc3+ {[%clk 0:15:34]} 28. bxc3 {[%clk
0:44:14]} 28... Qxc3 {[%clk 0:15:04]} 29. Rxh4 {[%clk 0:40:17]} 29... Bf3 {[%clk
0:13:12]} 30. Qd2 {[%clk 0:39:13]} 30... Bxd1 {[%clk 0:13:00]} 31. Qxd1 {[%clk
0:39:39]} 31... e4 {[%clk 0:09:23]} 32. Rxe4 {[%clk 0:31:48]} 32... Rfe8 {[%clk
0:08:38]} 33. Qe2 {[%clk 0:31:33]} 33... Rxe4 {[%clk 0:07:55]} 34. Qxe4 {[%clk
0:31:59]} 34... d5 {[%clk 0:06:33]} 35. Qd3 {[%clk 0:32:28]} 35... Qe1+ {[%clk
0:06:24]} 36. Kb2 {[%clk 0:32:53]} 36... a5 {[%clk 0:06:15]} 37. g6 {[%clk
0:31:59]} 37... a4 {[%clk 0:03:33]} 38. gxf7+ {[%clk 0:32:14]} 38... Kf8 {[%clk
0:03:24]} 39. Qd2 {[%clk 0:30:17]} 39... Qe7 {[%clk 0:01:00]} 40. Nd4 {[%clk
0:30:33]} 40... Kxf7 {[%clk 0:00:33]} 41. Qa5 {[%clk 0:23:21]} 41... Qe5 {[%clk
0:23:15]} 42. Qxa4 {[%clk 0:52:07]} 42... Kg8 {[%clk 0:22:25]} 43. Bb5 {[%clk
0:43:55]} 43... Rb8 {[%clk 0:20:36]} 44. Ka2 {[%clk 0:44:00]} 44... Qxh2 {[%clk
0:20:21]} 45. Qa7 {[%clk 0:42:47]} 45... Rf8 {[%clk 0:14:45]} 46. Qe7 {[%clk
0:35:34]} 46... Qg1 {[%clk 0:11:39]} 47. Qe6+ {[%clk 0:35:01]} 47... Kh8 {[%clk
0:11:58]} 48. Qxd5 {[%clk 0:34:56]} 48... Qg5 {[%clk 0:10:10]} 49. Qd6 {[%clk
0:28:06]} 49... Rd8 {[%clk 0:09:08]} 50. Qc6 {[%clk 0:24:15]} 50... Qg1 {[%clk
0:06:30]} 51. Nb3 {[%clk 0:23:50]} 51... Qa7+ {[%clk 0:06:57]} 52. Kb2 {[%clk
0:24:15]} 52... Qe7 {[%clk 0:06:54]} 53. Qe6 {[%clk 0:24:13]} 53... Qf6+ {[%clk
0:05:30]} 54. Qxf6 {[%clk 0:21:47]} 54... gxf6 {[%clk 0:05:59]} 55. c4 {[%clk
0:22:10]} 55... h5 {[%clk 0:06:04]} 56. c5 {[%clk 0:21:29]} 56... h4 {[%clk
0:05:51]} 57. Bf1 {[%clk 0:21:21]} 57... Kg7 {[%clk 0:04:55]} 58. c6 {[%clk
0:21:09]} 58... Rc8 {[%clk 0:04:17]} 59. Nd4 {[%clk 0:21:28]} 59... Kh6 {[%clk
0:04:32]} 60. Bh3 {[%clk 0:21:34]} 60... Kg7 {[%clk 0:04:05]} 61. Ne6+ {[%clk
0:14:42]} 61... Kf7 {[%clk 0:04:32]} 62. c7 {[%clk 0:15:02]} 62... Ke7 {[%clk
0:04:58]} 63. Bf1 {[%clk 0:15:26]} 63... Kd7 {[%clk 0:03:21]} 64. Bb5+ {[%clk
0:15:51]} 64... Kd6 {[%clk 0:03:50]} 65. Ba6 {[%clk 0:16:15]} 65... Rxc7 {[%clk
0:02:34]} 66. Nxc7 {[%clk 0:16:40]} 66... Ke5 {[%clk 0:03:03]} 67. Kc3 {[%clk
0:16:34]} 67... Kxf5 {[%clk 0:03:29]} 68. Kd3 {[%clk 0:16:47]} 68... Kf4 {[%clk
0:02:41]} 69. Ke2 {[%clk 0:16:22]} 69... Kg3 {[%clk 0:02:13]} 70. Bb7 {[%clk
0:14:02]} 70... f5 {[%clk 0:02:34]} 71. Ne6 {[%clk 0:14:09]} 71... f4 {[%clk
0:02:57]} 72. Ng5 {[%clk 0:13:16]} 72... Kg4 {[%clk 0:03:02]} 73. Ne4 {[%clk
0:12:31]} 73... f3+ {[%clk 0:03:20]} 74. Kf2 {[%clk 0:12:51]} 74... h3 {[%clk
0:03:48]} 75. Nd2 {[%clk 0:12:46]} 75... Kf4 {[%clk 0:04:01]} 76. Bxf3 {[%clk
0:13:05]} 76... h2 {[%clk 0:04:15]} 77. Bh1 {[%clk 0:12:51]} 77... Kf5 {[%clk
0:04:32]} 78. Ke3 {[%clk 0:13:01]} 78... Ke5 {[%clk 0:05:01]} 79. Be4 {[%clk
0:13:09]} 79... h1=N {[%clk 0:05:12]} 80. Bxh1 {[%clk 0:13:28]} 80... Kd6 {[%clk
0:05:28]} 81. Kd4 {[%clk 0:13:46]} 81... Ke6 {[%clk 0:05:49]} 82. Be4 {[%clk
0:14:05]} 82... Kd6 {[%clk 0:05:57]} 83. Bd5 {[%clk 0:14:30]} 83... Ke7 {[%clk
0:06:18]} 84. Ke5 {[%clk 0:14:54]} 84... Kd7 {[%clk 0:06:47]} 85. Nc4 {[%clk
0:15:13]} 85... Ke7 {[%clk 0:07:08]} 86. Be6 {[%clk 0:15:35]} 86... Ke8 {[%clk
0:05:18]} 87. Ne3 {[%clk 0:14:26]} 87... Ke7 {[%clk 0:04:51]} 88. Nf5+ {[%clk
0:12:48]} 88... Ke8 {[%clk 0:04:46]} 89. Kd6 {[%clk 0:12:58]} 89... Kf8 {[%clk
0:05:14]} 90. Bd5 {[%clk 0:12:47]} 90... Ke8 {[%clk 0:05:42]} 91. Nh6 {[%clk
0:12:12]} 91... Kf8 {[%clk 0:06:07]} 92. Nf7 {[%clk 0:12:22]} 92... Kg7 {[%clk
0:06:19]} 93. Ke6 {[%clk 0:12:46]} 93... Kg6 {[%clk 0:06:31]} 94. Bf3 {[%clk
0:13:12]} 94... Kg7 {[%clk 0:06:48]} 95. Be4 {[%clk 0:13:31]} 95... Kf8 {[%clk
0:07:00]} 96. Kf6 {[%clk 0:13:50]} 96... Kg8 {[%clk 0:07:29]} 97. Bf5 {[%clk
0:14:13]} 97... Kf8 {[%clk 0:07:58]} 98. Bh7 {[%clk 0:14:38]} 98... Ke8 {[%clk
0:08:27]} 99. Ne5 {[%clk 0:15:02]} 99... Kd8 {[%clk 0:08:44]} 100. Ke6 {[%clk
0:15:29]} 100... Kc7 {[%clk 0:09:06]} 101. Nd7 {[%clk 0:15:55]} 101... Kc6
{[%clk 0:09:29]} 102. Bd3 {[%clk 0:16:22]} 102... Kc7 {[%clk 0:09:51]} 103. Be4
{[%clk 0:16:41]} 103... Kd8 {[%clk 0:09:27]} 104. Kd6 {[%clk 0:17:08]} 104...
Kc8 {[%clk 0:09:55]} 105. Nc5 {[%clk 0:17:28]} 105... Kd8 {[%clk 0:10:20]} 106.
Bg6 {[%clk 0:17:50]} 106... Kc8 {[%clk 0:10:49]} 107. Bf7 {[%clk 0:18:11]}
107... Kd8 {[%clk 0:11:02]} 108. Nb7+ {[%clk 0:18:38]} 108... Kc8 {[%clk
0:11:29]} 109. Kc6 {[%clk 0:19:05]} 109... Kb8 {[%clk 0:11:59]} 110. Kb6 {[%clk
0:19:29]} 110... Kc8 {[%clk 0:12:24]} 111. Be6+ {[%clk 0:19:57]} 111... Kb8
{[%clk 0:12:53]} 112. Nc5 {[%clk 0:20:18]} 112... Ka8 {[%clk 0:13:20]} 113. Bd7
{[%clk 0:20:43]} 113... Kb8 {[%clk 0:13:47]} 114. Na6+ {[%clk 0:21:11]} 114...
Ka8 {[%clk 0:13:49]} 115. Bc6# {[%clk 0:21:40]} 1-0

[Variant "Standard"]
[Site "Europe Echecs"]

[Event "Open Cappelle-la-Grande"]
[Date "2025.02.19"]
[White "Zienkiewicz, Jan"]
[Black "Flom, Gabriel"]
[WhiteElo "2345"]
[BlackElo "2455"]
[Round "7.7.10"]
[Result "0-1"]
[TimeControl "40/5400+30:1800+30"]

1. e4 {[%clk 1:30:54]} 1... c5 {[%clk 1:30:55]} 2. Nf3 {[%clk 1:31:19]} 2... e6
{[%clk 1:31:15]} 3. d4 {[%clk 1:31:42]} 3... cxd4 {[%clk 1:31:35]} 4. Nxd4
{[%clk 1:32:05]} 4... Nc6 {[%clk 1:31:54]} 5. Nc3 {[%clk 1:32:30]} 5... Qc7
{[%clk 1:32:18]} 6. Be3 {[%clk 1:32:28]} 6... a6 {[%clk 1:31:35]} 7. g4 {[%clk
1:32:42]} 7... Nxd4 {[%clk 1:28:51]} 8. Qxd4 {[%clk 1:33:01]} 8... b5 {[%clk
1:29:17]} 9. O-O-O {[%clk 1:28:51]} 9... Bb7 {[%clk 1:28:45]} 10. Kb1 {[%clk
1:23:49]} 10... Nf6 {[%clk 1:26:06]} 11. Be2 {[%clk 1:05:45]} 11... h6 {[%clk
1:15:45]} 12. h4 {[%clk 0:47:42]} 12... Rc8 {[%clk 1:13:45]} 13. Qd3 {[%clk
0:29:46]} 13... Bb4 {[%clk 0:49:50]} 14. f3 {[%clk 0:26:32]} 14... Bxc3 {[%clk
0:50:06]} 15. bxc3 {[%clk 0:26:14]} 15... Qxc3 {[%clk 0:47:27]} 16. Qxc3 {[%clk
0:26:11]} 16... Rxc3 {[%clk 0:47:54]} 17. Bd4 {[%clk 0:26:19]} 17... Rc8 {[%clk
0:48:01]} 18. Be5 {[%clk 0:22:16]} 18... d5 {[%clk 0:45:38]} 19. g5 {[%clk
0:21:43]} 19... Nh5 {[%clk 0:45:53]} 20. Rdg1 {[%clk 0:20:02]} 20... f6 {[%clk
0:22:49]} 21. gxf6 {[%clk 0:16:56]} 21... gxf6 {[%clk 0:23:15]} 22. f4 {[%clk
0:16:29]} 22... fxe5 {[%clk 0:23:43]} 23. Bxh5+ {[%clk 0:16:54]} 23... Kd8
{[%clk 0:23:55]} 24. f5 {[%clk 0:04:42]} 24... exf5 {[%clk 0:24:13]} 25. exf5
{[%clk 0:04:42]} 25... d4 {[%clk 0:15:53]} 26. Rh2 {[%clk 0:04:55]} 26... Rf8
{[%clk 0:15:50]} 27. Rf2 {[%clk 0:04:29]} 27... Rc5 {[%clk 0:10:17]} 28. Rg7
{[%clk 0:04:20]} 28... Bc8 {[%clk 0:10:33]} 29. Bg6 {[%clk 0:03:55]} 29... Rc7
{[%clk 0:07:26]} 30. f6 {[%clk 0:04:20]} 30... Be6 {[%clk 0:07:55]} 31. f7
{[%clk 0:04:05]} 31... Ke7 {[%clk 0:07:34]} 32. Rh7 {[%clk 0:03:50]} 32... Rc6
{[%clk 0:07:08]} 33. h5 {[%clk 0:04:10]} 33... Bd5 {[%clk 0:06:54]} 34. Rf5
{[%clk 0:02:53]} 34... Re6 {[%clk 0:06:42]} 35. Rxh6 {[%clk 0:03:01]} 35... Bc4
{[%clk 0:07:03]} 36. Kc1 {[%clk 0:01:13]} 36... e4 {[%clk 0:06:41]} 37. Rf4
{[%clk 0:00:46]} 37... Bd5 {[%clk 0:05:43]} 38. Kd1 {[%clk 0:00:51]} 38... b4
{[%clk 0:04:58]} 39. Rh7 {[%clk 0:00:56]} 39... Rf6 {[%clk 0:04:50]} 40. Rg4
{[%clk 0:00:43]} 40... Rf1+ {[%clk 0:04:18]} 41. Kd2 {[%clk 0:01:07]} 41... e3+
{[%clk 0:02:22]} 42. Ke2 {[%clk 0:28:36]} 42... Bc4+ {[%clk 0:08:23]} 43. Bd3
{[%clk 0:28:35]} 43... Rf2+ {[%clk 0:08:50]} 44. Ke1 {[%clk 0:28:08]} 44... Bxd3
{[%clk 0:09:14]} 45. cxd3 {[%clk 0:28:26]} 45... R8xf7 {[%clk 0:09:38]} 46.
Rxf7+ {[%clk 0:27:08]} 46... Kxf7 {[%clk 0:09:59]} 47. Rxd4 {[%clk 0:09:43]}
47... a5 {[%clk 0:10:26]} 48. Rd7+ {[%clk 0:06:28]} 48... Ke6 {[%clk 0:08:21]}
49. Rb7 {[%clk 0:05:29]} 49... Rxa2 {[%clk 0:08:16]} 50. Rb5 {[%clk 0:05:28]}
50... Kf6 {[%clk 0:07:53]} 51. d4 {[%clk 0:05:29]} 51... a4 {[%clk 0:05:17]} 52.
Rb6+ {[%clk 0:03:22]} 52... Kg7 {[%clk 0:05:16]} 53. Rb7+ {[%clk 0:01:03]} 53...
Kh6 {[%clk 0:05:27]} 54. Rxb4 {[%clk 0:01:24]} 54... a3 {[%clk 0:05:42]} 55. d5
{[%clk 0:00:42]} 55... Rb2 {[%clk 0:04:47]} 56. Ra4 {[%clk 0:00:34]} 56... a2
{[%clk 0:05:14]} 57. d6 {[%clk 0:00:34]} 57... Rb1+ {[%clk 0:05:41]} 0-1

[Variant "Standard"]
[Site "Europe Echecs"]

[Event "Open Cappelle-la-Grande"]
[Date "2025.02.19"]
[White "Petriashvili, Nikoloz"]
[Black "Meillon, Judicael"]
[WhiteElo "2450"]
[BlackElo "2321"]
[Round "7.7.11"]
[Result "1/2-1/2"]
[TimeControl "40/5400+30:1800+30"]

1. Nf3 {[%clk 1:30:58]} 1... Nf6 {[%clk 1:29:58]} 2. g3 {[%clk 1:28:41]} 2... b6
{[%clk 1:30:12]} 3. Bg2 {[%clk 1:29:04]} 3... Bb7 {[%clk 1:30:41]} 4. O-O {[%clk
1:29:28]} 4... g6 {[%clk 1:31:05]} 5. c4 {[%clk 1:29:18]} 5... Bg7 {[%clk
1:31:31]} 6. Nc3 {[%clk 1:29:34]} 6... O-O {[%clk 1:31:45]} 7. Re1 {[%clk
1:29:57]} 7... Ne4 {[%clk 1:30:59]} 8. Nxe4 {[%clk 1:28:36]} 8... Bxe4 {[%clk
1:31:26]} 9. d3 {[%clk 1:29:05]} 9... Bb7 {[%clk 1:31:48]} 10. e4 {[%clk
1:29:34]} 10... c5 {[%clk 1:32:17]} 11. d4 {[%clk 1:29:24]} 11... cxd4 {[%clk
1:30:58]} 12. Nxd4 {[%clk 1:29:05]} 12... Nc6 {[%clk 1:26:04]} 13. Be3 {[%clk
1:28:28]} 13... Rc8 {[%clk 1:23:04]} 14. Rc1 {[%clk 1:28:04]} 14... d6 {[%clk
1:20:33]} 15. h4 {[%clk 1:27:05]} 15... Qd7 {[%clk 1:04:23]} 16. h5 {[%clk
1:26:44]} 16... Bxd4 {[%clk 0:58:09]} 17. Bxd4 {[%clk 1:27:09]} 17... Nxd4
{[%clk 0:58:34]} 18. Qxd4 {[%clk 1:27:33]} 18... Qg4 {[%clk 0:57:39]} 19. hxg6
{[%clk 1:27:20]} 19... hxg6 {[%clk 0:52:41]} 20. Rc3 {[%clk 1:27:19]} 20... Rc7
{[%clk 0:48:28]} 21. b3 {[%clk 1:26:47]} 21... Rfc8 {[%clk 0:46:09]} 22. Bf3
{[%clk 1:27:09]} 22... Qe6 {[%clk 0:41:50]} 23. Rce3 {[%clk 1:22:51]} 23... Rc5
{[%clk 0:40:43]} 24. a4 {[%clk 1:22:08]} 24... R8c7 {[%clk 0:36:54]} 25. Be2
{[%clk 1:19:53]} 25... Re5 {[%clk 0:35:30]} 26. Bd1 {[%clk 1:19:36]} 26... Qh3
{[%clk 0:29:24]} 27. Be2 {[%clk 1:14:51]} 27... Qe6 {[%clk 0:23:54]} 28. Bf3
{[%clk 1:14:16]} 28... Rec5 {[%clk 0:22:53]} 29. Kg2 {[%clk 1:13:50]} 29... Qe5
{[%clk 0:19:46]} 30. Qd2 {[%clk 1:14:18]} 30... a6 {[%clk 0:19:03]} 31. Rd3
{[%clk 1:02:38]} 31... b5 {[%clk 0:16:18]} 32. cxb5 {[%clk 1:00:28]} 32... axb5
{[%clk 0:16:01]} 33. axb5 {[%clk 0:57:27]} 33... Rxb5 {[%clk 0:11:18]} 34. Qf4
{[%clk 0:52:38]} 34... Qxf4 {[%clk 0:08:49]} 1/2-1/2

[Variant "Standard"]
[Site "Europe Echecs"]